fUST/lending_fUST_20251126
["ID","MTS","AMOUNT","RATE_DAILY","PERIOD"]
[394935314,1764163831967,-500.0,9.728e-05,2]
[394935315,1764163831977,-500.0,9.728e-05,2]
[394935316,1764163831987,-1072.65401033,9.728e-05,2]
[394935317,1764163831996,-500.0,9.728e-05,2]
[394935318,1764163832006,-1072.65401033,9.728e-05,2]
[394935319,1764163832015,-500.0,9.728e-05,2]
[394935320,1764163832025,-1072.65401033,9.728e-05,2]
[394935321,1764163832034,-502.54626409,9.728e-05,2]
[394935322,1764163832043,-556.81455518,9.728e-05,2]
[394935323,1764163832053,-1072.65401033,9.728e-05,2]
[394935324,1764163832063,-1072.65401033,9.728e-05,2]
[394935325,1764163832072,-1072.65401033,9.728e-05,2]
[394935326,1764163832083,-1072.65401033,9.728e-05,2]
[394935327,1764163832092,-1072.65401033,9.728e-05,2]
[394935328,1764163832101,-1072.65401033,9.728e-05,2]
[394935329,1764163832111,-1072.65401033,9.728e-05,2]
[394935330,1764163832119,-1072.65401033,9.728e-05,2]
[394935331,1764163832129,-1072.65401033,9.728e-05,2]
[394935332,1764163832139,-1072.65401033,9.728e-05,2]
[394935333,1764163832148,-1072.65401033,9.728e-05,2]
[394935334,1764163832157,-1072.65401033,9.728e-05,2]
[394935335,1764163832166,-1072.65401033,9.728e-05,2]
[394935336,1764163832176,-1072.65401033,9.728e-05,2]
[394935337,1764163832185,-1072.65401033,9.728e-05,2]
[394935338,1764163832195,-1072.65401033,9.728e-05,2]
[394935339,1764163832206,-1072.65401033,9.728e-05,2]
[394935340,1764163832215,-1072.65401033,9.728e-05,2]
[394935341,1764163832224,-1072.65401033,9.728e-05,2]
[394935342,1764163832234,-1072.65401033,9.728e-05,2]
[394935343,1764163832244,-1072.65401033,9.728e-05,2]
[394935344,1764163832255,-1072.65401033,9.728e-05,2]
[394935345,1764163832265,-1072.65401033,9.728e-05,2]
[394935346,1764163832275,-1072.65401033,9.728e-05,2]
[394935347,1764163832284,-1072.65401033,9.728e-05,2]
[394935348,1764163832294,-1072.65401033,9.728e-05,2]
[394935349,1764163832305,-1072.65401033,9.728e-05,2]
[394935350,1764163832316,-1072.65401033,9.728e-05,2]
[394935351,1764163832327,-1072.65401033,9.728e-05,2]
[394935352,1764163832336,-1072.65401033,9.728e-05,2]
[394935353,1764163832346,-1072.65401033,9.728e-05,2]
[394935354,1764163832356,-1072.65401033,9.728e-05,2]
[394935355,1764163832368,-1072.65401033,9.728e-05,2]
[394935356,1764163832377,-1072.65401033,9.728e-05,2]
[394935357,1764163832386,-1072.65401033,9.728e-05,2]
[394935358,1764163832397,-1072.65401033,9.728e-05,2]
[394935359,1764163832407,-1072.65401033,9.728e-05,2]
[394935360,1764163832416,-1072.65401033,9.728e-05,2]
[394935361,1764163832425,-1072.65401033,9.728e-05,2]
[394935362,1764163832435,-1072.65401033,9.728e-05,2]
[394935363,1764163832444,-1072.65401033,9.728e-05,2]
[394935364,1764163832454,-1072.65401033,9.728e-05,2]
[394935365,1764163832463,-201.05706526,9.728e-05,2]
[394935366,1764163832472,-1059.57286387,9.728e-05,2]
[394935367,1764163832482,-1059.57286387,9.728e-05,2]
[394935368,1764163832491,-1059.57286387,9.728e-05,2]
[394935369,1764163832501,-1059.57286387,9.728e-05,2]
[394935370,1764163832510,-1059.57286387,9.728e-05,2]
[394935371,1764163832519,-1059.57286387,9.728e-05,2]
[394935372,1764163832528,-1059.57286387,9.728e-05,2]
[394935373,1764163832536,-1059.57286387,9.728e-05,2]
[394935374,1764163832546,-1059.57286387,9.728e-05,2]
[394935375,1764163832555,-1059.57286387,9.728e-05,2]
[394935376,1764163832564,-1059.57286387,9.728e-05,2]
[394935377,1764163832573,-1059.57286387,9.728e-05,2]
[394935378,1764163832582,-1059.57286387,9.728e-05,2]
[394935379,1764163832592,-1059.57286387,9.728e-05,2]
[394935380,1764163832606,-1059.57286387,9.728e-05,2]
[394935381,1764163832617,-1059.57286387,9.728e-05,2]
[394935382,1764163832627,-1059.57286387,9.728e-05,2]
[394935383,1764163832638,-1059.57286387,9.728e-05,2]
[394935384,1764163832647,-1059.57286387,9.728e-05,2]
[394935385,1764163832658,-1059.57286387,9.728e-05,2]
[394935386,1764163832669,-1059.57286387,9.728e-05,2]
[394935387,1764163832679,-1059.57286387,9.728e-05,2]
[394935388,1764163832689,-1059.57286387,9.728e-05,2]
[394935389,1764163832698,-1059.57286387,9.728e-05,2]
[394935390,1764163832707,-1059.57286387,9.728e-05,2]
[394935391,1764163832716,-1059.57286387,9.728e-05,2]
[394935392,1764163832726,-1059.57286387,9.728e-05,2]
[394935393,1764163832736,-1059.57286387,9.728e-05,2]
[394935394,1764163832746,-1059.57286387,9.728e-05,2]
[394935395,1764163832755,-1059.57286387,9.728e-05,2]
[394935396,1764163832765,-1059.57286387,9.728e-05,2]
[394935397,1764163832774,-1059.57286387,9.728e-05,2]
[394935398,1764163832784,-1059.57286387,9.728e-05,2]
[394935399,1764163832793,-1059.57286387,9.728e-05,2]
[394935400,1764163832803,-1059.57286387,9.728e-05,2]
[394935401,1764163832813,-1080.59613496,9.728e-05,2]
[394935402,1764163832823,-1080.59613496,9.728e-05,2]
[394935403,1764163832832,-1080.59613496,9.728e-05,2]
[394935404,1764163832842,-1080.59613496,9.728e-05,2]
[394935405,1764163832851,-1080.59613496,9.728e-05,2]
[394935406,1764163832861,-1080.59613496,9.728e-05,2]
[394935407,1764163832871,-1080.59613495,9.728e-05,2]
[394935408,1764163832881,-300.0,0.00010129,2]
[394935409,1764163832891,-300.0,0.00010129,2]
[394935410,1764163832900,-300.0,0.00010129,2]
[394935411,1764163832909,-300.0,0.00010129,2]
[394935412,1764163832919,-300.0,0.00010129,2]
[394935413,1764163832928,-300.0,0.00010129,2]
[394935414,1764163832938,-500.0,0.00010183,2]
[394935415,1764163832947,-500.0,0.00010183,2]
[394935416,1764163832956,-500.0,0.00010183,2]
[394935417,1764163832966,-504.46359423,0.00010183,2]
[394935418,1764163832975,-500.0,0.00010183,2]
[394935419,1764163832984,-500.0,0.00010183,2]
[394935420,1764163832994,-500.0,0.00010183,2]
[394935421,1764163833003,-287.87774449,0.00010251,2]
[394935422,1764163833012,-1000.0,0.00010251,2]
[394935423,1764163833022,-500.0,0.00010251,2]
[394935424,1764163833033,-156.57432602,0.00010383,2]
[394935425,1764163833046,-500.0,0.00010643,2]
[394935426,1764163833056,-1000.0,0.00010731,2]
[394935427,1764163833065,-713.84129543,0.00010731,2]
[394935428,1764163833075,-959.08988808,0.00010731,2]
[394935429,1764163833085,-500.0,0.00010731,2]
[394935430,1764163833095,-1000.0,0.00010731,2]
[394935431,1764163833105,-598.19978832,0.00010731,2]
[394935432,1764163833115,-220.72828482,0.00010798,2]
[394935433,1764163833125,-500.0,0.00010959,2]
[394935434,1764163833135,-500.0,0.00010959,2]
[394935435,1764163833144,-500.0,0.00010959,2]
[394935436,1764163833154,-500.0,0.00010959,2]
[394935437,1764163833162,-202.40654709,0.00010959,2]
[394935438,1764163833172,-518.528011,0.00011191,2]
[394935439,1764163833181,-1005.88750535,0.00011279,2]
[394935440,1764163833190,-1000.0,0.00011279,2]
[394935441,1764163833200,-177.0,0.00011396,2]
[394935442,1764163833209,-204.14077816,0.00012483,2]
[394935443,1764163833219,-266.98377808,0.000129,2]
[394935444,1764163833228,-160.0,0.00013242,2]
[394935445,1764163833237,-204.0,0.00013396,2]
[394935446,1764163833247,-1000.0,0.00013699,2]
[394935447,1764163833258,-1276.3935724,0.00015063,2]
[394935448,1764163833267,-231.0,0.00015396,2]
[394935449,1764163833276,-500.0,0.00016438,2]
[394935450,1764163833286,-326.78079823,0.00016438,2]
[394935451,1764163833295,-150.0,0.00017144,2]
[394935452,1764163833305,-258.0,0.00017396,2]
[394935453,1764163833314,-333.0,0.00017581,2]
[394935454,1764163833327,-500.0,0.00018081,2]
[394935455,1764163833336,-150.0,0.00018703,2]
[394935456,1764163833345,-377.7567553,0.00019177,2]
[394935457,1764163833354,-150.0,0.00019178,2]
[394935458,1764163833364,-300.0,0.00019315,2]
[394935459,1764163833373,-285.0,0.00019396,2]
[394935460,1764163833382,-249.72827833,0.00019452,2]
[394935461,1764163833391,-160.0,0.00019727,2]
[394935462,1764163833400,-161.062,0.00019808,2]
[394935463,1764163833410,-1565.200636,0.000199,5]
[394935464,1764163833419,-453.95531264,0.000199,4]
[394935465,1764163833429,-1000.0,0.0001992,5]
[394935466,1764163833438,-272.83936,0.00019921,7]
[394935467,1764163833448,-268.81,0.00019921,7]
[394935468,1764163833652,-1000.0,0.0001994,5]
[394935469,1764163833662,-1000.0,0.0001996,5]
[394935470,1764163833671,-1000.0,0.0001998,5]
[394935471,1764163833681,-150.0,0.0002,2]
[394935472,1764163833691,-1000.0,0.0002,5]
[394935473,1764163833700,-150.0,0.0002,10]
[394935474,1764163833709,-500.0,0.0002,2]
[394935475,1764163833719,-500.0,0.0002,2]
[394935476,1764163833728,-453.95531264,0.00020099,4]
[394935477,1764163833737,-177.39374302,0.00020117,2]
[394935478,1764163833747,-157.52926092,0.00020117,2]
[394935479,1764163833756,-500.0,0.00020117,2]
[394935480,1764163833765,-532.77215586,0.00020117,2]
[394935481,1764163833775,-500.0,0.00020117,2]
[394935482,1764163833784,-260.0,0.00020275,2]
[394935483,1764163833793,-453.95531264,0.00020298,4]
[394935484,1764163833802,-453.95531264,0.00020497,4]
[394935485,1764163833811,-1000.0,0.00020665,2]
[394935486,1764163833820,-949.39919579,0.00020665,2]
[394935487,1764163833830,-453.95531264,0.00020696,4]
[394935488,1764163833839,-360.0,0.00020823,2]
[394935489,1764163833849,-244.76074849,0.00020895,6]
[394935490,1764163833859,-1000.0,0.00020899,3]
[394935491,1764163833869,-1000.0,0.00020997,5]
[394935492,1764163833888,-1000.0,0.00020999,3]
[394935493,1764163833899,-151.31843755,0.00021143,2]
[394935494,1764163833909,-1500.0,0.00021213,2]
[394935495,1764163833919,-460.0,0.00021371,2]
[394935496,1764163833928,-312.0,0.00021396,2]
[394935497,1764163833938,-1000.0,0.00021499,3]
[394935498,1764163833947,-2000.0,0.00021761,2]
[394935499,1764163833957,-1000.0,0.00021856,3]
[394935500,1764163833967,-2248.04238718,0.00021902,2]
[394935501,1764163833978,-560.0,0.00021919,2]
[394935502,1764163833987,-1735.02,0.00022,7]
[394935503,1764163833997,-704.07,0.00022,14]
[394935504,1764163834007,-2248.04238718,0.00022104,2]
[394935505,1764163834017,-1000.0,0.00022213,3]
[394935506,1764163834026,-2500.0,0.00022308,2]
[394935507,1764163834036,-179.74835231,0.00022351,2]
[394935508,1764163834046,-2248.04238718,0.0002245,2]
[394935509,1764163834056,-660.0,0.00022467,2]
[394935510,1764163834065,-1000.0,0.0002257,3]
[394935511,1764163834075,-1000.0,0.00022574,3]
[394935512,1764163834084,-2248.04238718,0.00022649,2]
[394935513,1764163834094,-3000.0,0.00022708,2]
[394935514,1764163834104,-3000.0,0.00022856,2]
[394935515,1764163834113,-150.0,0.00022973,2]
[394935516,1764163834124,-100000.0,0.0002299,2]
[394935517,1764163834133,-2248.04238718,0.00023003,2]
[394935518,1764163834144,-250.9108025,0.00023014,2]
[394935519,1764163834154,-177.0,0.00023014,8]
[394935520,1764163834164,-760.0,0.00023015,2]
[394935521,1764163834175,-2248.04238718,0.00023089,2]
[394935522,1764163834184,-1000.0,0.00023294,3]
[394935523,1764163834193,-4294.04477503,0.00023386,2]
[394935524,1764163834203,-339.0,0.00023396,2]
[394935525,1764163834212,-3500.0,0.00023404,2]
[394935526,1764163834223,-2248.04238718,0.00023418,2]
[394935527,1764163834233,-300.0,0.00023521,2]
[394935528,1764163834243,-2500.0,0.00023521,2]
[394935529,1764163834252,-2034.0922,0.00023521,2]
[394935530,1764163834261,-860.0,0.00023563,2]
[394935531,1764163834270,-1000.0,0.00023588,3]
[394935532,1764163834280,-704.07,0.000237,14]
[394935533,1764163834289,-4294.04477503,0.00023776,2]
[394935534,1764163834298,-3000.0,0.00023804,2]
[394935535,1764163834307,-2248.04238718,0.00023827,2]
[394935536,1764163834317,-2248.04238718,0.00023874,2]
[394935537,1764163834330,-23037.98189811,0.00023918,2]
[394935538,1764163834339,-4000.0,0.00023952,2]
[394935539,1764163834349,-4294.04477503,0.00023984,2]
[394935540,1764163834358,-1000.0,0.00023999,3]
[394935541,1764163834369,-450.0,0.00024068,2]
[394935542,1764163834379,-191.0,0.0002411,12]
[394935543,1764163834390,-960.0,0.00024111,2]
[394935544,1764163834401,-4294.04477503,0.00024184,2]
[394935545,1764163834411,-2248.04238718,0.00024214,2]
[394935546,1764163834420,-1000.0,0.00024358,3]
[394935547,1764163834431,-4294.04477507,0.00024452,2]
[394935548,1764163834442,-156.470128,0.0002448,3]
[394935549,1764163834453,-4500.0,0.000245,2]
[394935550,1764163834464,-2248.04238728,0.00024594,2]
[394935551,1764163834473,-1735.02,0.000246,7]
[394935552,1764163834483,-1026.48,0.000246,3]
[394935553,1764163834491,-264.96856329,0.00024616,2]
[394935554,1764163834501,-3495.01034378,0.00024649,7]
[394935555,1764163834511,-150.0,0.00024658,2]
[394935556,1764163834522,-1060.0,0.00024659,2]
[394935557,1764163834532,-1000.0,0.00024699,3]
[394935558,1764163834541,-1000.0,0.00024699,3]
[394935559,1764163834551,-697.0,0.00024795,2]
[394935560,1764163834559,-1000.0,0.00024799,3]
[394935561,1764163834568,-2000.0,0.000248,2]
[394935562,1764163834578,-152.152544,0.000248,7]
[394935563,1764163834588,-151.0,0.000248,7]
[394935564,1764163834599,-151.0,0.000248,7]
[394935565,1764163834609,-152.915397,0.000248,7]
[394935566,1764163834618,-151.0,0.000248,7]
[394935567,1764163834627,-151.0,0.000248,7]
[394935568,1764163834635,-151.0,0.000248,7]
[394935569,1764163834645,-151.0,0.000248,7]
[394935570,1764163834657,-151.0,0.000248,7]
[394935571,1764163834666,-151.0,0.000248,7]
[394935572,1764163834675,-151.0,0.000248,7]
[394935573,1764163834684,-1000.0,0.00024899,2]
[394935574,1764163834694,-3000.0,0.000249,2]
[394935575,1764163834703,-151.0,0.000249,7]
[394935576,1764163834712,-151.0,0.000249,7]
[394935577,1764163834721,-151.0,0.000249,7]
[394935578,1764163834730,-151.0,0.000249,7]
[394935579,1764163834740,-151.0,0.000249,7]
[394935580,1764163834750,-151.0,0.000249,7]
[394935581,1764163834762,-151.0,0.000249,7]
[394935582,1764163834771,-151.0,0.000249,7]
[394935583,1764163834783,-151.0,0.000249,7]
[394935584,1764163834793,-469841.779164,0.000249,2]
[394935585,1764163834804,-697.0,0.00024932,2]
[394935586,1764163834814,-12202.05233912,0.0002497,2]
[394935587,1764163834934,-1016.70874072,0.0002497,2]
[394935617,1764163837833,-535.5,0.00019921,7]
[394935619,1764163837842,-543.5,0.00019921,7]
[394935621,1764163837851,-2248.04238718,0.00023635,2]
[394935623,1764163837861,-1157.54755412,0.0002497,2]
[394935625,1764163837873,-643.09343148,0.0002497,2]
[394935627,1764163837884,-651.5443167,0.0002497,2]
[394935629,1764163837894,-2420.1853518,0.0002497,2]
[394935630,1764163837905,-282.83175995,0.0002497,2]
[394935631,1764163837916,-1163.0827225,0.0002497,2]
[394935632,1764163837927,-894.61203176,0.0002497,2]
[394935655,1764163840166,-266.98377808,0.00015127,2]
[394935656,1764163840175,-803.5,0.00019921,7]
[394935657,1764163840186,-271.22,0.00019921,7]
[394935658,1764163840196,-64994.11978155,0.0002497,2]
[394935659,1764163840205,-1188.400212,0.0002498,5]
[394935660,1764163840215,-151.0,0.0002498,7]
[394935661,1764163840224,-151.0,0.0002498,7]
[394935662,1764163840233,-151.0,0.0002498,7]
[394935663,1764163840242,-151.0,0.0002498,7]
[394935664,1764163840251,-151.0,0.0002498,7]
[394935665,1764163840261,-151.0,0.0002498,7]
[394935666,1764163840270,-227.251736,0.0002498,7]
[394935667,1764163840279,-151.0,0.0002498,7]
[394935668,1764163840289,-151.0,0.0002498,7]
[394935669,1764163840298,-1323.94351263,0.00025,2]
[394935670,1764163840306,-1082.07388379,0.00025,2]
[394935671,1764163840315,-1988.79257085,0.00025,2]
[394935672,1764163840329,-2666.24799736,0.00025,2]
[394935673,1764163840338,-934.0684954,0.00025,2]
[394935674,1764163840347,-150.0,0.00025,2]
[394935675,1764163840356,-600.0,0.00025,2]
[394935676,1764163840370,-755.96976028,0.00025,2]
[394935677,1764163840379,-500.0,0.00025,2]
[394935678,1764163840389,-341.32563307,0.00025,2]
[394935679,1764163840399,-2294.0,0.00025,3]
[394935680,1764163840408,-151.0,0.00025,7]
[394935681,1764163840418,-151.0,0.00025,7]
[394935682,1764163840426,-1000.0,0.00025,5]
[394935683,1764163840436,-207.204151,0.00025,2]
[394935684,1764163840445,-5000.0,0.00025048,2]
[394935685,1764163840454,-697.0,0.00025069,2]
[394935686,1764163840463,-171.20305094,0.00025089,110]
[394935687,1764163840472,-576.91039936,0.000252,5]
[394935688,1764163840481,-704.07,0.000252,14]
[394935689,1764163840491,-250.0,0.00025205,2]
[394935690,1764163840503,-697.0,0.00025206,2]
[394935691,1764163840514,-1160.0,0.00025207,2]
[394935692,1764163840524,-1033.82549,0.0002527,2]
[394935693,1764163840534,-447.438581,0.00025342,2]
[394935694,1764163840543,-697.0,0.00025343,2]
[394935695,1764163840551,-366.0,0.00025396,2]
[394935696,1764163840560,-600.0,0.00025397,10]
[394935697,1764163840569,-900.0,0.00025469,3]
[394935698,1764163840578,-697.0,0.0002548,2]
[394935699,1764163840587,-1000.0,0.000255,2]
[394935700,1764163840596,-5500.0,0.00025596,2]
[394935701,1764163840605,-697.0,0.00025617,2]
[394935702,1764163840614,-193.0,0.00025753,14]
[394935703,1764163840624,-350.0,0.00025753,2]
[394935704,1764163840633,-697.0,0.00025754,2]
[394935705,1764163840642,-1260.0,0.00025755,2]
[394935706,1764163840651,-152.711468,0.0002576,7]
[394935707,1764163840662,-42712.8890149,0.00025793,2]
[394935708,1764163840672,-2000.0,0.000258,2]
[394935709,1764163840682,-151.0,0.00025803,7]
[394935710,1764163840692,-229.036799,0.00025803,7]
[394935711,1764163840701,-151.0,0.00025803,7]
[394935712,1764163840710,-151.0,0.00025803,7]
[394935713,1764163840719,-151.0,0.00025803,7]
[394935714,1764163840729,-163.12,0.00025803,7]
[394935715,1764163840741,-151.0,0.00025803,7]
[394935716,1764163840750,-151.0,0.00025803,7]
[394935717,1764163840759,-697.0,0.00025891,2]
[394935718,1764163840768,-3000.0,0.00025996,2]
[394935719,1764163840777,-528.12240169,0.00026,2]
[394935720,1764163840786,-161.0,0.00026,5]
[394935721,1764163840795,-697.0,0.00026028,2]
[394935722,1764163840804,-156.470128,0.00026082,2]
[394935723,1764163840814,-6000.0,0.00026144,2]
[394935724,1764163840823,-193.96642932,0.0002616,2]
[394935725,1764163840832,-697.0,0.00026165,2]
[394935726,1764163840841,-1735.02,0.000262,7]
[394935727,1764163840850,-151.0,0.00026207,7]
[394935728,1764163840858,-151.0,0.00026207,7]
[394935729,1764163840867,-151.0,0.00026207,7]
[394935730,1764163840876,-151.0,0.00026207,7]
[394935731,1764163840885,-156.71665,0.00026207,7]
[394935732,1764163840894,-205.882846,0.00026207,7]
[394935733,1764163840903,-2047.55576355,0.00026207,2]
[394935734,1764163840912,-450.0,0.00026301,2]
[394935735,1764163840922,-697.0,0.00026302,2]
[394935736,1764163840931,-1360.0,0.00026303,2]
[394935737,1764163840941,-697.0,0.00026439,2]
[394935738,1764163840950,-151.0,0.00026566,7]
[394935739,1764163840960,-151.0,0.00026566,7]
[394935740,1764163840969,-697.0,0.00026576,2]
[394935741,1764163840979,-704.07,0.000266,14]
[394935742,1764163840988,-1500.0,0.00026676,2]
[394935743,1764163840998,-6500.0,0.00026692,2]
[394935744,1764163841007,-697.0,0.00026713,2]
[394935745,1764163841016,-550.0,0.00026849,2]
[394935746,1764163841026,-697.0,0.0002685,2]
[394935747,1764163841035,-1609.85112064,0.00026851,2]
[394935748,1764163841044,-697.0,0.00026987,2]
[394935749,1764163841054,-5000.0,0.00027074,2]
[394935750,1764163841063,-3000.0,0.00027092,2]
[394935751,1764163841072,-1013.8696318,0.00027123,3]
[394935752,1764163841081,-697.0,0.00027124,2]
[394935753,1764163841091,-7000.0,0.0002724,2]
[394935754,1764163841100,-697.0,0.00027261,2]
[394935755,1764163841110,-199.83075012,0.0002739,2]
[394935756,1764163841120,-150.0,0.0002739,2]
[394935757,1764163841129,-708.5112,0.0002739,2]
[394935758,1764163841139,-393.0,0.00027396,2]
[394935759,1764163841149,-2025.0,0.00027397,7]
[394935760,1764163841158,-500.0,0.00027397,2]
[394935761,1764163841167,-151.0,0.00027397,2]
[394935762,1764163841177,-1000.0,0.00027397,2]
[394935763,1764163841187,-1000.0,0.00027397,2]
[394935764,1764163841197,-1000.0,0.00027397,2]
[394935765,1764163841206,-1000.0,0.00027397,2]
[394935766,1764163841217,-1000.0,0.00027397,2]
[394935767,1764163841228,-1000.0,0.00027397,2]
[394935768,1764163841239,-1000.0,0.00027397,2]
[394935769,1764163841247,-937.70396887,0.00027397,2]
[394935770,1764163841257,-151.0,0.00027397,2]
[394935771,1764163841266,-565.63045204,0.00027397,120]
[394935772,1764163841275,-650.0,0.00027397,5]
[394935773,1764163841285,-209.20397954,0.00027397,2]
[394935774,1764163841296,-214.0,0.00027397,14]
[394935775,1764163841305,-150.0,0.00027397,5]
[394935776,1764163841315,-150.0,0.00027397,5]
[394935777,1764163841325,-697.0,0.00027398,2]
[394935778,1764163841335,-7476.71,0.000274,2]
[394935779,1764163841345,-500.0,0.00027534,2]
[394935780,1764163841354,-151.0,0.00027534,2]
[394935781,1764163841364,-151.0,0.00027534,2]
[394935782,1764163841375,-697.0,0.00027535,2]
[394935783,1764163841384,-221.2573,0.000276,120]
[394935784,1764163841394,-600.88318,0.000276,120]
[394935785,1764163841403,-500.0,0.00027671,2]
[394935786,1764163841412,-151.0,0.00027671,2]
[394935787,1764163841422,-151.0,0.00027671,2]
[394935788,1764163841430,-697.0,0.00027672,2]
[394935789,1764163841440,-151.0,0.0002769,7]
[394935790,1764163841449,-151.0,0.0002769,7]
[394935791,1764163841458,-1735.02,0.000277,7]
[394935792,1764163841467,-513.24,0.000277,3]
[394935793,1764163841476,-1000.0,0.00027777,5]
[394935794,1764163841485,-7500.0,0.00027788,5]
[394935795,1764163841494,-500.0,0.00027808,2]
[394935796,1764163841503,-239.42683211,0.00027808,2]
[394935797,1764163841513,-193.68767427,0.00027808,2]
[394935798,1764163841522,-697.0,0.00027809,2]
[394935799,1764163841531,-720.0,0.00027937,30]
[394935800,1764163841540,-5000.0,0.0002794,2]
[394935801,1764163841549,-500.0,0.00027945,2]
[394935802,1764163841558,-750.0,0.00027945,5]
[394935803,1764163841567,-250.0,0.00027945,5]
[394935804,1764163841576,-250.0,0.00027945,5]
[394935805,1764163841585,-719.46911295,0.00027946,2]
[394935806,1764163841594,-2159.759998,0.00028,2]
[394935807,1764163841603,-450.0,0.00028,120]
[394935808,1764163841613,-500.0,0.00028,30]
[394935809,1764163841626,-500.0,0.00028082,2]
[394935810,1764163841635,-3000.0,0.00028188,7]
[394935811,1764163841644,-500.0,0.00028219,2]
[394935812,1764163841654,-4893.0,0.000283,7]
[394935813,1764163841664,-8000.0,0.00028336,5]
[394935814,1764163841673,-500.0,0.00028356,2]
[394935815,1764163841682,-500.0,0.00028493,2]
[394935816,1764163841692,-850.0,0.00028493,5]
[394935817,1764163841700,-350.0,0.00028493,5]
[394935818,1764163841709,-350.0,0.00028493,5]
[394935819,1764163841718,-500.0,0.0002863,2]
[394935820,1764163841727,-4000.0,0.0002876,5]
[394935821,1764163841736,-500.0,0.00028767,2]
[394935822,1764163841746,-447.438581,0.00028767,60]
[394935823,1764163841755,-5000.0,0.00028807,2]
[394935824,1764163841764,-864.62919683,0.00028884,5]
[394935825,1764163841773,-500.0,0.00028904,2]
[394935826,1764163841782,-151.0,0.0002899,7]
[394935827,1764163841791,-250.781268,0.0002899,7]
[394935828,1764163841800,-887.39659139,0.00029,2]
[394935829,1764163841809,-7476.71,0.00029,2]
[394935830,1764163841818,-2496.89237,0.00029,2]
[394935831,1764163841828,-23037.98189809,0.00029033,2]
[394935832,1764163841839,-500.0,0.00029041,2]
[394935833,1764163841848,-189.0,0.00029041,32]
[394935834,1764163841857,-950.0,0.00029041,5]
[394935835,1764163841868,-450.0,0.00029041,5]
[394935836,1764163841878,-450.0,0.00029041,5]
[394935837,1764163841887,-1352.84060529,0.00029041,120]
[394935838,1764163841896,-500.0,0.00029178,2]
[394935839,1764163842060,-600.88318,0.000292,120]
[394935840,1764163842071,-500.0,0.00029315,2]
[394935841,1764163842081,-420.0,0.00029396,2]
[394935842,1764163842093,-500.0,0.00029452,2]
[394935843,1764163842102,-1500.0,0.000295,2]
[394935844,1764163842113,-500.0,0.00029589,2]
[394935845,1764163842124,-1050.0,0.00029589,5]
[394935846,1764163842133,-550.0,0.00029589,5]
[394935847,1764163842142,-550.0,0.00029589,5]
[394935848,1764163842151,-5000.0,0.00029673,2]
[394935849,1764163842161,-513.24,0.000297,5]
[394935850,1764163842170,-500.0,0.00029726,2]
[394935851,1764163842179,-156.73090035,0.00029755,2]
[394935852,1764163842188,-3000.0,0.00029832,7]
[394935853,1764163842197,-500.0,0.00029863,2]
[394935854,1764163842206,-500.0,0.00029973,5]
[394935855,1764163842216,-151.0,0.0002999,7]
[394935856,1764163842225,-500.0,0.0003,2]
[394935857,1764163842234,-3125.95419397,0.0003,2]
[394935858,1764163842243,-984.56706748,0.0003,2]
[394935859,1764163842252,-269.11765302,0.0003,2]
[394935860,1764163842261,-7476.71,0.0003,2]
[394935861,1764163842270,-3444.81062737,0.0003,5]
[394935862,1764163842280,-165.46,0.0003,5]
[394935863,1764163842289,-518.50300813,0.0003,2]
[394935864,1764163842298,-300.0,0.0003,120]
[394935865,1764163842311,-323.0,0.0003,2]
[394935866,1764163842322,-150000.0,0.0003,60]
[394935867,1764163842335,-1500.0,0.0003,2]
[394935868,1764163842344,-2588.72036351,0.00030037,2]
[394935869,1764163842353,-287.24972466,0.0003013,2]
[394935870,1764163842364,-500.0,0.00030137,2]